Cogmind - Beta 9.6 @@@ ROGUE MODE // 2020.07.31 @ 14:26:03 // Winter2019/RPGLIKE Player: Hermelin Result: Destroyed by G-47 Trooper with Particle Gun Performance ------------- Evolutions (2) 1000 Regions Visited (5) 1000 Robots Destroyed (78) 390 Value Destroyed (1311) 1311 Prototype IDs (36) 720 Alien Tech Used (0) 0 Bonus (-181) -181 TOTAL SCORE: 4240 Bonus ------- High Alert Combat Kills 19 Aligned with FarCom 300 Friendly Fire -500 Cogmind --------- Core Integrity 0/1250 Matter 277/300 Energy 108/410 System Corruption 13% Temperature Cool (27) Movement Hovering (58) Location -8/Materials Parts ------- > --- POWER (2) -------- Heavy Deuterium Engine Cold Fusion Reactor > --- PROPULSION (3) --- Improved Hover Unit Makeshift Hover Unit Combat Antigrav System > --- UTILITY (5) ------ Experimental Heat Sink Advanced Targeting Computer Light Armor Plating System Purifier Advanced Recalibrator > --- WEAPON (2) ------- Latent Energy Streamer Guided Plasma Cannon > --- INVENTORY (2) ---- Firepult Peak State ------------ > --- POWER ------------ Heavy Deuterium Engine Cold Fusion Reactor > --- PROPULSION ------- Improved Hover Unit Makeshift Hover Unit Combat Antigrav System > --- UTILITY ---------- Experimental Heat Sink Improved Terrain Scanner Shield Generator System Purifier Advanced Recalibrator > --- WEAPON ----------- Latent Energy Streamer Guided Plasma Cannon > --- INVENTORY -------- Firepult [Rating: 74] Favorites ----------- Power Light Nuclear Core Engine Heavy Deuterium Engine Power Core Light Nuclear Core Reactor Cold Fusion Reactor Propulsion Armored Wheel Leg Advanced Myomer Leg Wheel Armored Wheel Hover Unit Combat Antigrav System Flight Unit Flight Unit Utility Improved Terrain Scanner Device Improved Terrain Scanner Storage Large Matter Pod Processor Seismic Analyzer Hackware Hacking Suite Protection Propulsion Shielding Weapon Assault Rifle Energy Cannon Guided Plasma Cannon Ballistic Gun Assault Rifle Launcher Grenade Launcher Special Melee Weapon Datajack Build | -11 -10 -10 -10 -9 -8 ------- Run | Scr Mat Min Exi Min Mat Slots Evolved 8 | 3 1 2 . . 2 Power 1 | . . 1 . . . Propulsion 2 | 1 . . . . 1 Utility 4 | 1 1 1 . . 1 Weapon 1 | 1 . . . . . Parts Attached 53 | 5 17 9 17 . 5 Power 10 | 1 1 4 4 . . Engine 6 | 1 1 1 3 . . Core 3 | . . 3 . . . Reactor 1 | . . . 1 . . Propulsion 10 | . 5 . 4 . 1 Treads . | . . . . . . Leg 2 | . . . 2 . . Wheel 2 | . 2 . . . . Hover 3 | . . . 2 . 1 Flight 3 | . 3 . . . . Utility 17 | 2 5 1 5 . 4 Device 9 | 1 2 . 4 . 2 Storage 1 | . . . 1 . . Processor 3 | 1 1 . . . 1 Hackware 1 | . 1 . . . . Protection 3 | . 1 1 . . 1 Artifact . | . . . . . . Weapon 16 | 2 6 4 4 . . Energy Gun . | . . . . . . Energy Cannon 2 | . . . 2 . . Ballistic Gun 8 | 2 3 2 1 . . Ballistic Cannon . | . . . . . . Launcher 5 | . 2 2 1 . . Special Weapon . | . . . . . . Impact Weapon . | . . . . . . Slashing Weapon . | . . . . . . Piercing Weapon . | . . . . . . Special Melee Weapon 1 | . 1 . . . . Unidentified Prototypes 5 | . . . 5 . . Parts Lost 4 | . . . 3 . 1 Power 1 | . . . 1 . . Propulsion . | . . . . . . Utility 3 | . . . 2 . 1 Weapon . | . . . . . . Highest Loss Streak 1 | . . . 1 . 1 Average Slot Usage (%) 97 | . 97 98 96 100 98 Engine 7 | . 13 4 3 10 8 Core 7 | . . 13 11 . . Reactor 1 | . . . 2 10 8 Leg 2 | . . . 6 . . Wheel 11 | . 9 20 8 . . Hover 3 | . . . 4 20 21 Flight 4 | . 15 . . . . Device 24 | . 17 20 27 40 39 Storage 1 | . . . 4 . . Hackware 1 | . 6 . . . . Protection 8 | . 3 19 6 . 1 Energy Cannon 4 | . . . 7 20 17 Ballistic Gun 16 | . 24 20 11 . . Launcher 1 | . 2 . 1 . . Naked Turns . | . . . . . . Heaviest Build 53 | 7 13 22 50 50 53 Greatest Support 65 | 8 29 29 65 52 60 Greatest Overweight (x) 1 | . . . 1 . . Average Overweight (x) . | . . . . . . Largest Inventory Capacity 2 | 2 2 2 2 2 2 Average Capacity 1 | 1 2 2 2 2 2 Most Carried 2 | 2 2 2 2 2 2 Average Carried 1 | 1 1 1 1 2 2 Final Capacity 2 | 2 2 2 2 2 2 Final Carried 2 | 2 2 2 2 2 2 Class Distribution -------------------- 57% | Mutant 29% | Scavenger-Mutant 13% | Hacker-Mutant Dominant Class ---------------- Mutant | -10/Materials Mutant | -10/Mines Scavenger-Mutant | -10/Exiles Scavenger-Mutant | -9/Mines Scavenger-Mutant | -8/Materials Resources | -11 -10 -10 -10 -9 -8 ----------- Run | Scr Mat Min Exi Min Mat Matter Collected 1830 | 306 565 478 445 . 36 Remotely . | . . . . . . Salvage Created 2371 | 101 888 372 486 134 390 Parts 146 | 14 48 17 37 3 27 Haulers Intercepted 2 | . 2 . . . . Recyclers Shooed 2 | 1 1 . . . . Parts Field Recycled . | . . . . . . Retrieved Matter . | . . . . . . Parts Self-Destructed . | . . . . . . Prevented . | . . . . . . Kills | -11 -10 -10 -10 -9 -8 ------- Run | Scr Mat Min Exi Min Mat Combat Hostiles Destroyed 45 | . 16 12 5 3 9 Guns 20 | . 9 9 2 . . Cannons 2 | . . . . 1 1 AOE 23 | . 7 3 3 2 8 Classes Destroyed 12 | 2 6 . 3 . 1 Builder 1 | . 1 . . . . Tunneler 4 | 3 1 . . . . Hauler 2 | . 2 . . . . Recycler 3 | 1 2 . . . . Operator 4 | . 3 . . . 1 Turret 1 | . . . 1 . . Watcher 5 | . 3 . . . 2 Swarmer 20 | . 8 6 . . 6 Grunt 19 | . 8 6 . 3 2 Sentry 1 | . . . . . 1 Zionite 7 | . . . 7 . . Assembled 7 | . . . 7 . . Best Kill Streak 7 | 2 6 4 4 3 7 Combat Bots Only 5 | . 5 4 4 3 4 Max Kills in Single Turn 4 | 1 3 2 3 2 4 Gunslinging 1 | . 1 . . . . Exploded 3 | . 3 2 3 2 3 Melee . | . . . . . . Uniques/NPCs Destroyed 2 | . . . 2 . . 8R-AWN (-10/Exiles) EX-DEC (-10/Exiles) EX-BIN (-10/Exiles) EX-HEX (-10/Exiles) Combat | -11 -10 -10 -10 -9 -8 -------- Run | Scr Mat Min Exi Min Mat Damage Taken 2747 | . 268 458 1558 166 297 Core 2040 | . 208 307 1188 127 210 Absorbed by Shields 710 | . 12 184 424 49 41 Redirected to Core 1703 | . 171 271 957 127 177 Core Remaining (%) 50 | 100 . . . . . Volleys Fired 273 | 14 84 41 114 4 16 Largest 2 | 2 2 2 2 1 1 Hottest 120 | 40 40 50 120 120 120 Shots Fired 433 | 28 132 82 171 4 16 Gun 350 | 28 125 79 118 . . Cannon 71 | . . . 51 4 16 Launcher 12 | . 7 3 2 . . Special . | . . . . . . Kinetic 350 | 28 125 79 118 . . Thermal 63 | . . . 51 1 11 Explosive 12 | . 7 3 2 . . Electromagnetic 8 | . . . . 3 5 Robot Hit Streak 27 | 5 11 13 27 19 4 Robot Miss Streak 8 | 2 8 4 3 1 2 Penetration Max . | . . . . . . Secondary Targets 2 | . 1 . 1 . . Max Gunslinging Chain 1 | . 1 . 1 . . Shots Hit Robots 277 | 18 74 50 127 2 6 Core Hits 146 | 6 41 21 51 8 19 Critical Hits 5 | . 4 . 1 . . Critical Kills 1 | . 1 . . . . Critical Parts Destroyed 4 | . 3 . 1 . . Melee Attacks 2 | . 2 . . . . Impact . | . . . . . . Slashing . | . . . . . . Piercing . | . . . . . . Sneak Attacks 1 | . 1 . . . . Combat Hostiles . | . . . . . . Follow-up Attacks . | . . . . . . Damage Inflicted 7099 | 193 1427 763 3032 297 1387 Guns 2797 | 193 857 550 1197 . . Cannons 1974 | . . . 1554 51 369 Explosions 2328 | . 570 213 281 246 1018 Melee . | . . . . . . Ramming . | . . . . . . Kinetic 2797 | 193 857 550 1197 . . Thermal 1980 | . . . 1554 37 389 Explosive 1064 | . 570 213 281 . . Electromagnetic 1258 | . . . . 260 998 Impact . | . . . . . . Slashing . | . . . . . . Piercing . | . . . . . . Highest Corruption 13 | . . . . 2 13 Average Corruption 3 | . . . . 1 4 Corruption Purged 8 | . . . . 3 5 Effects 2 | . . . . . 2 Matter Fused 2 | . . . . . 2 Overload Shots . | . . . . . . Overflow Damage 110 | . 35 6 59 . 10 Projectiles 61 | . . . 59 . 2 Explosions 49 | . 35 6 . . 8 Melee . | . . . . . . Knockbacks . | . . . . . . Impact . | . . . . . . Kinetic . | . . . . . . Secondary . | . . . . . . Self-Inflicted Damage 163 | . . 5 . . 158 Shots 3 | . . 1 . . 2 Rammed . | . . . . . . Targets Rammed . | . . . . . . Kicked . | . . . . . . Crushed . | . . . . . . Highest Temperature 258 | . 10 258 3 . 18 Average Temperature 69 | . 2 94 3 . 8 Received Heat Transfer 420 | . 100 212 41 10 57 Siege Activations . | . . . . . . Robots Corrupted . | . . . . . . Combat Hostiles . | . . . . . . Parts Fried 6 | . . . . 2 4 Impact Corruptions . | . . . . . . Robots Melted 1 | . . . 1 . . Combat Hostiles . | . . . . . . Parts Melted 25 | . . . 23 . 2 Heat Transferred 4450 | . . . 3520 80 850 Parts Sabotaged . | . . . . . . Parts Stolen . | . . . . . . Parts Stripped . | . . . . . . Power Chain Reactions 1 | . . . . . 1 Missiles Intercepted . | . . . . . . Latent Energy Used 1044 | . . . . 185 859 LE Corruption 19 | . . . . 4 15 Alert | -11 -10 -10 -10 -9 -8 ------- Run | Scr Mat Min Exi Min Mat Peak Influence 451 | 20 451 400 . 100 382 Average Influence 246 | 8 322 247 . 49 146 Maximum Alert Level 2 | . 2 2 . . 1 Low Security (%) 27 | 100 16 8 . 100 68 Level 1 60 | . 55 88 . . 31 Level 2 12 | . 27 2 . . . Level 3 . | . . . . . . Level 4 . | . . . . . . Level 5 . | . . . . . . High Security . | . . . . . . Max Security . | . . . . . . Squads Dispatched 5 | . 3 . . . 2 Investigation 2 | . 1 . . . 1 Extermination . | . . . . . . Reinforcement 3 | . 2 . . . 1 Assault . | . . . . . . Garrison . | . . . . . . Intercept . | . . . . . . Construction Impeded . | . . . . . . Haulers Reinforced . | . . . . . . Stealth | -11 -10 -10 -10 -9 -8 --------- Run | Scr Mat Min Exi Min Mat Distress Signals 1 | . 1 . . . . Communications Jammed . | . . . . . . Distress Signals . | . . . . . . Times Spotted 102 | . 30 13 29 16 14 Peak Tracking Total 14 | . 4 3 6 14 7 Tactical Retreats 11 | . 2 1 8 . . Traps | -11 -10 -10 -10 -9 -8 ------- Run | Scr Mat Min Exi Min Mat Traps Triggered . | . . . . . . Indirectly . | . . . . . . Trap Hack Attempts . | . . . . . . Triggered . | . . . . . . Disarmed . | . . . . . . Reprogrammed . | . . . . . . Reused . | . . . . . . Traps Extracted . | . . . . . . Installed . | . . . . . . Triggered . | . . . . . . Machines | -11 -10 -10 -10 -9 -8 ---------- Run | Scr Mat Min Exi Min Mat Machines Disabled 10 | . 3 . 5 1 1 Max in Single Turn 1 | . 1 . 1 1 1 Machines Sabotaged . | . . . . . . Garrisons Compromised . | . . . . . . Overloaded Fab Kills . | . . . . . . Fab Network Shutdowns . | . . . . . . Hacking | -11 -10 -10 -10 -9 -8 --------- Run | Scr Mat Min Exi Min Mat Machines Accessed 14 | . 9 1 1 . 3 Terminals 11 | . 7 1 . . 3 Fabricators . | . . . . . . Repair Stations 1 | . 1 . . . . Recycling Units 1 | . 1 . . . . Scanalyzers . | . . . . . . Garrison Access . | . . . . . . Total Hacks 49 | . 33 5 1 . 10 Successful 31 | . 22 3 1 . 5 Failed 17 | . 10 2 . . 5 Catastrophic 1 | . 1 . . . . Database Lockouts 1 | . 1 . . . . Manual 30 | . 18 5 1 . 6 Terminals 42 | . 27 5 . . 10 Fabricators . | . . . . . . Repair Stations 4 | . 4 . . . . Recycling Units 2 | . 2 . . . . Scanalyzers . | . . . . . . Garrison Access . | . . . . . . Terminal Hacks 20 | . 13 3 1 . 3 Robot Schematic 1 | . 1 . . . . Robot Analysis 6 | . 6 . . . . Prototype ID Bank 6 | . 2 3 . . 1 Level Access Points 1 | . 1 . . . . Terminal Index 1 | . . . . . 1 Locate Traps 2 | . 2 . . . . Hauler Manifests 1 | . . . . . 1 Registered Components 1 | . 1 . . . . EX-Prototype ID Bank 1 | . . . 1 . . Fabricator Hacks . | . . . . . . Repair Station Hacks 3 | . 3 . . . . Scan Component 1 | . 1 . . . . Repair 1 | . 1 . . . . Refit 1 | . 1 . . . . Recycling Unit Hacks 1 | . 1 . . . . Retrieve Components 1 | . 1 . . . . Scanalyzer . | . . . . . . Garrison Access Hacks . | . . . . . . Unauthorized Hacks 7 | . 5 . . . 2 Terminals 6 | . 4 . . . 2 Botnet 6 | . 4 . . . 2 Fabricators . | . . . . . . Repair Stations . | . . . . . . Recycling Units 1 | . 1 . . . . Reject 1 | . 1 . . . . Scanalyzers . | . . . . . . Garrison Access . | . . . . . . Data Cores Recovered 1 | . . . . . 1 Used 1 | . . . . . 1 Hacking Detections 11 | . 7 1 . . 3 Full Trace Events 5 | . 3 1 . . 1 Feedback Events . | . . . . . . Feedback Blocked . | . . . . . . Robot Schematics Acquired 1 | . 1 . . . . Robots Built . | . . . . . . Matter . | . . . . . . Time . | . . . . . . Total Robot Build Rating . | . . . . . . Part Schematics Acquired . | . . . . . . Parts Built . | . . . . . . Matter . | . . . . . . Time . | . . . . . . Total Part Build Rating . | . . . . . . Parts Repaired 1 | . 1 . . . . Time 32 | . 32 . . . . Parts Recycled . | . . . . . . Recycled Matter . | . . . . . . Retrieved Matter . | . . . . . . Retrieved Components 5 | . 5 . . . . Parts Scanalyzed . | . . . . . . Part Schematics Acquired . | . . . . . . Parts Damaged . | . . . . . . Bothacking | -11 -10 -10 -10 -9 -8 ------------ Run | Scr Mat Min Exi Min Mat Used RIF Installer . | . . . . . . Robots Hacked 2 | . 2 . . . . Non-combat 2 | . 2 . . . . Combat . | . . . . . . Robot Hacks Applied 2 | . 2 . . . . parse_system 1 | . 1 . . . . find_recycling 1 | . 1 . . . . Relay Couplers Released . | . . . . . . Robots Rewired . | . . . . . . Allies Hacked . | . . . . . . Hacks Repelled . | . . . . . . Allies | -11 -10 -10 -10 -9 -8 -------- Run | Scr Mat Min Exi Min Mat Total Allies . | . . . . . . Largest Group . | . . . . . . Highest-Rated Group . | . . . . . . Highest-Rated Ally . | . . . . . . Total Orders . | . . . . . . Ally Attacks . | . . . . . . Total Damage . | . . . . . . Kills . | . . . . . . Allies Corrupted . | . . . . . . Allies Melted . | . . . . . . Turrets Deployed 1 | . . . 1 . . Intel | -11 -10 -10 -10 -9 -8 ------- Run | Scr Mat Min Exi Min Mat Robot Analysis Total 6 | . 6 . . . . Derelict Logs Recovered 1 | . . 1 . . . Drone Launches . | . . . . . . Drone Recoveries . | . . . . . . Exploration | -11 -10 -10 -10 -9 -8 ------------- Run | Scr Mat Min Exi Min Mat Turns Passed 3395 | 95 935 833 1184 135 213 Spaces Moved 2940 | 82 947 609 880 174 248 Core 163 | 82 81 . . . . Treads . | . . . . . . Legs 198 | . . . 198 . . Wheels 1135 | . 164 609 362 . . Hover 742 | . . . 320 174 248 Flight 702 | . 702 . . . . Fastest Speed 37 | 50 37 90 66 66 58 Average Speed 70 | 50 47 90 88 66 62 Slowest Speed 150 | 50 90 90 150 66 66 Overloaded Moves . | . . . . . . Propulsion Burnouts . | . . . . . . Robots Hopped 5 | . 5 . . . . Cave-ins Triggered . | . . . . . . Exploration Rate (%) 59 | 3 94 98 89 48 27 Regions Visited 5 Branch Regions 3 Pre-discovered Areas . | . . . . . . Known Exits Taken . | . . . . . . Unknown Exits Taken 5 | 1 1 1 1 1 . Scrap Searched 2 | . . 2 . . . Spaces Dug 2 | . . . 1 . 1 Terrain Destroyed 162 | . 36 31 5 8 82 Melee . | . . . . . . Projectile 2 | . . . 1 . 1 AOE 160 | . 36 31 4 8 81 Actions | -11 -10 -10 -10 -9 -8 --------- Run | Scr Mat Min Exi Min Mat Total 3810 | 107 1297 809 1120 189 288 Wait 458 | 5 236 136 63 8 10 Move 2925 | 81 936 608 879 173 248 Hop 5 | . 5 . . . . Pick Up 19 | 2 4 2 11 . . Fast Attach 32 | 5 8 4 10 . 5 Attach 2 | . . 1 1 . . Detach . | . . . . . . Swap 19 | . 9 4 6 . . Drop 38 | . 11 4 21 . 2 Fire 273 | 14 84 41 114 4 16 Melee 2 | . 2 . . . . Ram . | . . . . . . Kick . | . . . . . . Crush . | . . . . . . Escape Stasis . | . . . . . . Rewire . | . . . . . . Trap . | . . . . . . Miscellaneous 37 | . 2 9 15 4 7 Route ------- -11/Scrapyard -10/Materials (discovered 4 exits: *Mat x3 / *Min) -10/Mines (discovered 3 exits: *Mat x2 / *Exi) -10/Exiles (discovered 2 exits: [*Min x2]) -9/Mines (discovered 2 exits: *Mat x2) -8/Materials (discovered 1 exit: Fac) History --------- Turn | Location | Event 4 | -11/Scrapyard | Discovered new exit (range 16) 8 | -11/Scrapyard | Upgraded with Propulsion slot (x1) 8 | -11/Scrapyard | Upgraded with Utility slot (x1) 8 | -11/Scrapyard | Upgraded with Weapon slot (x1) 96 | -11/Scrapyard | Entered Materials 165 | -10/Materials | Discovered new exit (range 16) 189 | -10/Materials | Discovered new exit (range 17) 224 | -10/Materials | Discovered new exit (range 14) 429 | -10/Materials | Identified exit to Materials 516 | -10/Materials | Reached level 2 578 | -10/Materials | Build established: Hacker-Mutant 618 | -10/Materials | Repaired Imp. Terrain Scanner 665 | -10/Materials | Central database locked down 682 | -10/Materials | Upgraded with Utility slot (x1) 1031 | -10/Materials | Entered Mines 1045 | -10/Mines | Build established: Mutant 1056 | -10/Mines | Discovered exit to Materials (range 8) 1057 | -10/Mines | Reached level 3 1084 | -10/Mines | Upgraded with Utility slot (x1) 1091 | -10/Mines | Upgraded with Power slot (x1) 1130 | -10/Mines | Discovered exit to Materials (range 8) 1372 | -10/Mines | Core integrity fell below 50% 1491 | -10/Mines | Discovered new exit (range 16) 1560 | -10/Mines | Learned 8 Materials zone layouts 1859 | -10/Mines | Deemed a non-threat by the Exiles lab entrance 1864 | -10/Mines | Entered Exiles 1866 | -10/Exiles | Reached level 4 1876 | -10/Exiles | Discovered new exit (range 15) 1916 | -10/Exiles | Met 8R-AWN 1928 | -10/Exiles | Met EX-HEX 1953 | -10/Exiles | Met EX-BIN 1994 | -10/Exiles | Aligned with FarCom system 1995 | -10/Exiles | Given EX-Vault access code 2015 | -10/Exiles | Opened EX-Vault 2037 | -10/Exiles | Warned to stay clear of 0b10 Research branches 2134 | -10/Exiles | Found Gui. Plasma Cannon 2136 | -10/Exiles | Found Latent Energy Streamer 2200 | -10/Exiles | Attacked by the Exiles 2347 | -10/Exiles | Core integrity fell below 20% 2374 | -10/Exiles | Destroyed 8R-AWN 2721 | -10/Exiles | Build established: Scavenger-Mutant 2732 | -10/Exiles | Destroyed EX-DEC 2738 | -10/Exiles | Destroyed EX-BIN 2767 | -10/Exiles | Found Prototype Device 2767 | -10/Exiles | Identified System Purifier 2792 | -10/Exiles | Destroyed EX-HEX 2831 | -10/Exiles | Found Deploy-a-Sentry 2958 | -10/Exiles | DAS Turret deployed 2958 | -10/Exiles | Found Firepult 3043 | -10/Exiles | Discovered new exit (range 10) 3048 | -10/Exiles | Stole three prototypes: Latent Energy Streamer, Gui. Plasma Cannon, Firepult 3048 | -10/Exiles | Entered Mines 3062 | -9/Mines | Discovered new exit (range 15) 3148 | -9/Mines | Discovered new exit (range 4) 3159 | -9/Mines | Assembled infested the area 3183 | -9/Mines | Entered Materials 3184 | -8/Materials | Identified exit to Factory 3184 | -8/Materials | Core integrity fell below 50% 3184 | -8/Materials | Core integrity fell below 20% 3185 | -8/Materials | Reached level 5 3189 | -8/Materials | Upgraded with Utility slot (x1) 3302 | -8/Materials | Reached level 6 3304 | -8/Materials | Upgraded with Propulsion slot (x1) 3375 | -8/Materials | System corruption reached 10% 3396 | -8/Materials | Destroyed by G-47 Trooper with Particle Gun Last Messages --------------- 03364_ C-30 ARC bursts open, deploying its payload. 03364_ S-10 Pest unfolds itself. 03364_ Door malfunctions. 03365_ U-05 Engineer lays Concrete. 03366_ K-01 Serf collects debris. 03366_ O-16 Technician: "IFF HANDSHAKE FAILED. SECURING TERMINAL." 03367_ U-05 Engineer builds a Wall. 03374_ Shield Generator destroyed. 03374_ Destroyed Shield Generator. 03374_ S-10 Pest destroyed. 03376_ System corrupted: Matter fused (-8). 03381_ Acquired Adv. Targeting Computer. 03382_ ALERT: Hostiles spotted, dispatching reinforcements to Terminal M004. 03387_ S-10 Pest destroyed. 03387_ G-50 Soldier destroyed. 03387_ Flight Unit fried. 03387_ S-10 Pest destroyed. 03387_ G-47 Trooper IFF system glitched. 03396_ G-47 Trooper heat short circuits Broken Aluminum Leg. 03396_ G-47 Trooper misfires. Map ----- +----------------------------------------------------+ | ????????????# # | | ????######### ########### ########### # | | ???# #######??######## # # # | | ???# """ #????????# ! T # # # # | | ???# """ #????????# + + # + | | #??# """ #????#???# """ # # # # | | #??# #????????#= """ # ########### # | | #??# " " #???#????# """ # ########??? # | | #??# "R" #????????# # # ##??#+##### | | #??# """ #????????######## # """ #?? # | | ????????????????????##??#???# # """ #?????????# | | ???????????????############## + """ !# ? ?? ?# | | ?????????????? # # ??? ? ?? | | ?????????????? # #?""? """ # | | ?????????????? ######## ""? ?"" ? | | ????????????????##############+######??#?""" ?""?? | | ?????????????????????#??# #?#?#?? ? # | | ???????????????????#?#??# """"" ################ | | ????????????????????????# """"" + | | ??????????????????????### """"" ############### | | ??????????????????????#?# #####?###???#?# | | ????????????????????#??## ######?######## | | ?????????????????????#??# ! #[ #### ####?# | | ???????????????????????## ]# # #"""#####^ | | ????????????????????????#####;;;;;# [# #[ # | | ????????????????????#???#@ ;! [;##=[ # | | ??????????????????????#?# ![ ;# [ ! # | | ??????????????????????#?# [g = ;##= # | | ????????????????????????# g[%=%* ; # # | | ?????????????????????#######;;;;;; ;;### # | | ???????????????????? # "" # | | ???????????????????? * # """ + | | ???????????????????? % # """ # | | ?????????????????????########/####### # """ # | | ??????????????????????????? ?## " " # | | #######?????# ????????#? # " "##/###### | | ????????????# ?????????? ## " " | | ????????????# """ ??????????" "??# " " | | ????????????# """ ??????????"R"? ## " " | | ????????????# """ ??????????""" ?## " " | | ????????????# ???????????#?#####" | | ????????????# """ ????????????##?#?## # | | ????????????# """ ????????????#????## # | | ????????????# """ ????????#???? ??### # | | ????????????# ??????????##?"? ###% "########## | | ????????????# ???????????? ?? ### %%########## | | ????????????######???????????? ???# # "% % | | ??????############???????????? ?? # ! | | ?????## ??????????????? # "! | | ##???# ???????????#? ??# " %""######## | +----------------------------------------------------+ Best States ------------- Heat Dissipation 75 Energy Generation 30 Energy Capacity 410 Matter Stores 304 Matter Capacity 450 Sight Range 17 Robot Scan Range 6 Terrain Scan Range 18 Terrain Scan Density 285 Armor Coverage 150 Resistance: KI 5 Propulsion Shielding 33 Evasion (%) 62 Targeting Accuracy 8 Offensive Hacking 15 Defensive Hacking 5 Item Schematics ----------------- None Robot Schematics ------------------ O-16 Technician | -10/Materials | Hacked Fabricated ------------ Nothing Alien Tech Used ----------------- None Achievements -------------- Close Call Challenges ------------ None RPGLIKE | -11 -10 -10 -10 -9 -8 --------- Run | Scr Mat Min Exi Min Mat Levels Raised 5 | . 1 1 1 . 2 XP Earned 11494 | 3000 2389 2045 350 925 2785 XP Spent 9790 | 2990 1025 1980 1450 . 2345 Upgrades 38 | 11 4 8 12 . 3 Power Slot 1 | . . 1 . . . Propulsion Slot 2 | 1 . . . . 1 Utility Slot 4 | 1 1 1 . . 1 Weapon Slot 1 | 1 . . . . . Core Integrity 13 | . . 2 10 . 1 Heat Dissipation 4 | . . 4 . . . Mass Support 1 | 1 . . . . . Inventory Capacity 2 | 2 . . . . . Sight Range 1 | 1 . . . . . Sensor Range 3 | . 3 . . . . Terrain Scan Density 2 | 2 . . . . . Ranged Accuracy 1 | . . . 1 . . Hack Attack % 1 | 1 . . . . . Hack Defense % 1 | 1 . . . . . KI Resistance % 1 | . . . 1 . . Protomatter Created 283 | . 7 75 113 30 58 Integrity Restored 789 | . 15 192 339 90 153 Core 789 | . 15 192 339 90 153 Protomatter Decayed 3 | . . 3 . . . Game ------ Seed ChargeArmorScrap Manual? 0 Play Time 00:48:59 Cumulative 128.7 hours Start 2020.07.31 @ 13:35:15 End 2020.07.31 @ 14:26:03 Sessions 1 Manual Loads 0 Difficulty Rogue Special Mode Winter2019/RPGLIKE Game No. 54 Rogue 54 Adventurer 0 Explorer 0 Win Type - Total 2 Types 1/0/0/1/0/0/0 Lore% 75 Gallery% 66 Achievement% 64 Wizard Run 0 Options --------- ASCII 0 Keyboard 0 Movement Numpad Keybinds 0 Fullscreen 1 Font 14/SmallcapsGlow Map View 84x54 Tactical HUD 1 Map Filters NONE Filters NONE Steam 1 RUN: 0b255669-79fd-476e-a3ab-56325e90a902